[Event "GER-chW Blitz 2019"]
[Site "Magdeburg"]
[Date "2019.05.25"]
[Round "1.1"]
[White "Michna, Marta"]
[Black "Roesler, Hannah Clara Hed"]
[Result "1-0"]
[ECO "A08"]
[WhiteElo "2355"]
[BlackElo "1619"]
[Annotator "NA RC"]
[PlyCount "85"]
[EventDate "2019.05.25"]
[EventType "tourn"]
[EventCountry "GER"]
[SourceTitle "playchess.com"]
[Source "ChessBase"]
[SourceQuality "1"]
[TimeControl "180+2"]

1. Nf3 {[%emt 0:00:00]} c5 2. g3 d5 {[%emt 0:00:11]} 3. Bg2 {[%emt 0:00:00]} g6 {[%emt 0:00:08]} 4. O-O {[%emt 0:00:02]} Bg7 {[%emt 0:00:01]} 5. d3 {[%emt 0:00:00]} Nf6 6. Nbd2 O-O {[%emt 0:00:19]} 7. e4 {[%emt 0:00:01]} dxe4 {[%emt 0:00:11]} 8. dxe4 {[%emt 0:00:01]} Qc7 {[%emt 0:00:18]} 9. Qe2 {[%emt 0:00:05]} Nc6 {[%emt 0:00:08]} 10. c3 {[%emt 0:00:01]} Rd8 {[%emt 0:00:08]} 11. a4 {[%emt 0:00:04]} b6 {[%emt 0:00:09]} 12. Re1 {[%emt 0:00:07]} Ng4 {[%emt 0:00:27]} 13. Nb1 {[%emt 0:00:33]} Qd7 {[%emt 0:00:16]} 14. Na3 {[%emt 0:00:11]} Nge5 {[%emt 0:00:06]} 15. Be3 {[%emt 0:00:20]} Bb7 {[%emt 0:00:18]} 16. Rad1 {[%emt 0:00:14]} Qe8 {[%emt 0:00:04]} 17. Nb5 {[%emt 0:00:01]} Rac8 {[%emt 0:00:05]} 18. Nxe5 {[%emt 0:00:04]} Nxe5 {[%emt 0:00:06]} 19. f4 {[%emt 0:00:02]} Nd7 {[%emt 0:00:10]} 20. Nxa7 {[%emt 0:00:08]} Ra8 {[%emt 0:00:08]} 21. Nb5 {[%emt 0:00:01]} Rdc8 {[%emt 0:00:08]} 22. Qc2 {[%emt 0:00:03]} Ba6 {[%emt 0:00:05]} 23. e5 {[%emt 0:00:06]} Rab8 {[%emt 0:00:02]} 24. Qb3 {[%emt 0:00:12]} Bxb5 {[%emt 0:00:03]} 25. Qxb5 {[%emt 0:00:02]} c4 {[%emt 0:00:04]} 26. Qxd7 {[%emt 0:00:03]} Qxd7 {[%emt 0:00:01]} 27. Rxd7 {[%emt 0:00:01]} Rd8 {[%emt 0:00:05]} 28. Red1 {[%emt 0:00:00]} Rxd7 {[%emt 0:00:03]} 29. Rxd7 {[%emt 0:00:01]} Bf8 {[%emt 0:00:02]} 30. Bd5 {[%emt 0:00:03]} b5 {[%emt 0:00:03]} 31. a5 {[%emt 0:00:02]} b4 {[%emt 0:00:02]} 32. a6 {[%emt 0:00:04]} bxc3 33. bxc3 {[%emt 0:00:01]} Rb1+ {[%emt 0:00:08]} 34. Kg2 {[%emt 0:00:03]} Rb2+ {[%emt 0:00:04]} 35. Bf2 {[%emt 0:00:03]} Rc2 {[%emt 0:00:01]} 36. a7 {[%emt 0:00:01]} Rxc3 {[%emt 0:00:03]} 37. a8=Q {[%emt 0:00:03]} Rc2 {[%emt 0:00:04]} 38. Rd8 {[%emt 0:00:01]} c3 39. Rxf8+ Kg7 40. Rxf7+ Kh6 41. Qf8+ Kh5 42. Rxh7+ Kg4 43. Rh4# 1-0

[Event "GER-chW Blitz 2019"]
[Site "Magdeburg"]
[Date "2019.05.25"]
[Round "1.2"]
[White "Muetsch, Annmarie"]
[Black "Osmanodja, Filiz"]
[Result "1-0"]
[ECO "B51"]
[WhiteElo "2266"]
[BlackElo "2260"]
[Annotator "ChessBase"]
[PlyCount "76"]
[EventDate "2019.05.25"]
[EventType "tourn"]
[EventCountry "GER"]
[SourceTitle "playchess.com"]
[Source "ChessBase"]
[SourceQuality "1"]
[TimeControl "180+2"]

1. e4 {[%emt 0:00:00]} c5 {[%emt 0:00:01]} 2. Nf3 {[%emt 0:00:01]} d6 {[%emt 0:00:01]} 3. Bb5+ {[%emt 0:00:04]} Nc6 {[%emt 0:00:05]} 4. O-O {[%emt 0:00:04]} Bd7 {[%emt 0:00:01]} 5. Re1 {[%emt 0:00:02]} Nf6 {[%emt 0:00:02]} 6. c3 {[%emt 0:00:04]} a6 {[%emt 0:00:00]} 7. Bf1 {[%emt 0:00:02]} Bg4 {[%emt 0:00:06]} 8. h3 {[%emt 0:00:03]} Bh5 {[%emt 0:00:09]} 9. d3 {[%emt 0:00:30]} e6 {[%emt 0:00:14]} 10. Bf4 {[%emt 0:00:12]} Be7 {[%emt 0:00:09]} 11. Nbd2 {[%emt 0:00:05]} O-O {[%emt 0:00:47]} 12. Be2 {[%emt 0:00:04]} h6 {[%emt 0:00:29]} 13. Nf1 {[%emt 0:00:09]} Bg6 {[%emt 0:00:05]} 14. Qd2 {[%emt 0:00:10]} c4 {[%emt 0:00:10]} 15. Bh2 {[%emt 0:00:26]} cxd3 {[%emt 0:00:22]} 16. Bxd3 {[%emt 0:00:01]} Nd7 {[%emt 0:00:14]} 17. Rad1 {[%emt 0:00:19]} Nde5 {[%emt 0:00:01]} 18. Nxe5 {[%emt 0:00:06]} dxe5 {[%emt 0:00:08]} 19. Ne3 {[%emt 0:00:11]} Bg5 {[%emt 0:00:02]} 20. Qe2 {[%emt 0:00:07]} Qe7 {[%emt 0:00:09]} 21. Nc4 {[%emt 0:00:09]} Bf4 {[%emt 0:00:09]} 22. g3 {[%emt 0:00:04]} Bg5 {[%emt 0:00:02]} 23. h4 {[%emt 0:00:03]} Bf6 {[%emt 0:00:00]} 24. h5 {[%emt 0:00:03]} Bh7 {[%emt 0:00:01]} 25. Bc2 Rad8 26. b4 {[%emt 0:00:27]} b5 {[%emt 0:00:01]} 27. Ne3 {[%emt 0:00:03]} Rd7 {[%emt 0:00:01]} 28. Rxd7 {[%emt 0:00:05]} Qxd7 {[%emt 0:00:00]} 29. Nd1 {[%emt 0:00:03]} Rd8 {[%emt 0:00:01]} 30. Nb2 {[%emt 0:00:09]} Qd2 {[%emt 0:00:03]} 31. Qxd2 {[%emt 0:00:03]} Rxd2 {[%emt 0:00:01]} 32. Rc1 {[%emt 0:00:00]} Bg5 {[%emt 0:00:06]} 33. Kf1 {[%emt 0:00:05]} Rxf2+ {[%emt 0:00:02]} 34. Kxf2 {[%emt 0:00:01]} Bxc1 {[%emt 0:00:01]} 35. Nd1 {[%emt 0:00:03]} f5 {[%emt 0:00:06]} 36. Kf3 {[%emt 0:00:04]} Bd2 {[%emt 0:00:04]} 37. Bg1 Kf7 {[%emt 0:00:01]} 38. Bc5 {[%emt 0:00:03]} Ne7 {[%emt 0:00:02]} 1-0

[Event "GER-chW Blitz 2019"]
[Site "Magdeburg"]
[Date "2019.05.25"]
[Round "1.4"]
[White "Hofmann, Karina"]
[Black "Daemering, Katrin"]
[Result "0-1"]
[ECO "A02"]
[WhiteElo "1700"]
[BlackElo "2003"]
[Annotator "NA RC"]
[PlyCount "54"]
[EventDate "2019.05.25"]
[EventType "tourn"]
[EventCountry "GER"]
[SourceTitle "playchess.com"]
[Source "ChessBase"]
[SourceQuality "1"]
[TimeControl "180+2"]

1. f4 {[%emt 0:00:00]} d6 {[%emt 0:00:00]} 2. Nf3 {[%emt 0:00:01]} g6 {[%emt 0:00:01]} 3. e3 {[%emt 0:00:01]} Bg7 {[%emt 0:00:01]} 4. Nc3 {[%emt 0:00:01]} a6 {[%emt 0:00:04]} 5. b3 {[%emt 0:00:01]} c5 {[%emt 0:00:09]} 6. Bb2 {[%emt 0:00:02]} Nf6 {[%emt 0:00:02]} 7. d4 {[%emt 0:00:02]} Nbd7 {[%emt 0:00:03]} 8. Bd3 {[%emt 0:00:03]} O-O {[%emt 0:00:09]} 9. d5 {[%emt 0:00:04]} Nxd5 {[%emt 0:00:04]} 10. Nxd5 {[%emt 0:00:10]} Bxb2 {[%emt 0:00:02]} 11. Rb1 {[%emt 0:00:01]} Bg7 {[%emt 0:00:02]} 12. e4 {[%emt 0:00:22]} Qa5+ {[%emt 0:00:04]} 13. Qd2 {[%emt 0:00:04]} Qd8 {[%emt 0:00:06]} 14. O-O {[%emt 0:00:03]} b5 {[%emt 0:00:03]} 15. c4 {[%emt 0:00:11]} b4 {[%emt 0:00:05]} 16. Rbe1 {[%emt 0:00:08]} Bb7 {[%emt 0:00:05]} 17. Bc2 {[%emt 0:00:06]} a5 {[%emt 0:00:08]} 18. Kh1 {[%emt 0:00:10]} Bc6 {[%emt 0:00:13]} 19. e5 {[%emt 0:00:06]} e6 {[%emt 0:00:20]} 20. Ne3 {[%emt 0:00:21]} dxe5 {[%emt 0:00:01]} 21. Qd6 {[%emt 0:00:09]} Bxf3 {[%emt 0:00:07]} 22. Rxf3 {[%emt 0:00:01]} exf4 {[%emt 0:00:04]} 23. Rxf4 {[%emt 0:00:04]} Be5 {[%emt 0:00:04]} 24. Qc6 {[%emt 0:00:30]} Bxf4 {[%emt 0:00:02]} 25. Ng4 {[%emt 0:00:05]} Qh4 {[%emt 0:00:08]} 26. Rf1 {[%emt 0:00:39]} Qxg4 {[%emt 0:00:06]} 27. Qxd7 {[%emt 0:00:02]} Qh4 {[%emt 0:00:09]} 0-1

[Event "GER-chW Blitz 2019"]
[Site "Magdeburg"]
[Date "2019.05.25"]
[Round "1.5"]
[White "Birkholz, Olga"]
[Black "Kreismann, Franziska"]
[Result "1-0"]
[ECO "B08"]
[WhiteElo "2031"]
[BlackElo "1589"]
[Annotator "NA RC"]
[PlyCount "63"]
[EventDate "2019.05.25"]
[EventType "tourn"]
[EventCountry "GER"]
[SourceTitle "playchess.com"]
[Source "ChessBase"]
[SourceQuality "1"]
[TimeControl "180+2"]

1. d4 {[%emt 0:00:00]} g6 {[%emt 0:00:01]} 2. Nf3 {[%emt 0:00:01]} Bg7 {[%emt 0:00:01]} 3. Nc3 {[%emt 0:00:01]} Nf6 {[%emt 0:00:01]} 4. e4 {[%emt 0:00:01]} d6 {[%emt 0:00:01]} 5. Be2 {[%emt 0:00:02]} O-O {[%emt 0:00:02]} 6. h3 {[%emt 0:00:01]} Re8 {[%emt 0:00:02]} 7. O-O {[%emt 0:00:04]} Nc6 {[%emt 0:00:04]} 8. d5 {[%emt 0:00:07]} e6 {[%emt 0:00:02]} 9. dxc6 {[%emt 0:00:02]} bxc6 {[%emt 0:00:01]} 10. Be3 {[%emt 0:00:12]} c5 {[%emt 0:00:01]} 11. Qd2 {[%emt 0:00:10]} Bb7 {[%emt 0:00:01]} 12. e5 {[%emt 0:00:11]} dxe5 {[%emt 0:00:02]} 13. Nxe5 {[%emt 0:00:08]} Qxd2 {[%emt 0:00:02]} 14. Bxd2 {[%emt 0:00:02]} Rad8 {[%emt 0:00:03]} 15. Be3 {[%emt 0:00:05]} Nd7 {[%emt 0:00:06]} 16. Nxd7 {[%emt 0:00:32]} Rxd7 {[%emt 0:00:02]} 17. Bxc5 {[%emt 0:00:09]} Bxc3 {[%emt 0:00:02]} 18. bxc3 {[%emt 0:00:01]} Red8 {[%emt 0:00:03]} 19. Bxa7 {[%emt 0:00:03]} Rd2 {[%emt 0:00:03]} 20. Bd3 {[%emt 0:00:02]} e5 {[%emt 0:00:06]} 21. Be3 {[%emt 0:00:01]} e4 {[%emt 0:00:03]} 22. Bxd2 {[%emt 0:00:03]} exd3 {[%emt 0:00:01]} 23. cxd3 {[%emt 0:00:02]} Rxd3 {[%emt 0:00:01]} 24. Be3 {[%emt 0:00:00]} Rxc3 {[%emt 0:00:04]} 25. Rfc1 {[%emt 0:00:03]} Rxc1+ 26. Rxc1 {[%emt 0:00:02]} Bd5 {[%emt 0:00:10]} 27. a3 {[%emt 0:00:01]} c6 {[%emt 0:00:01]} 28. a4 {[%emt 0:00:02]} Kg7 {[%emt 0:00:06]} 29. a5 {[%emt 0:00:01]} Kf6 {[%emt 0:00:01]} 30. a6 {[%emt 0:00:00]} Ke5 {[%emt 0:00:01]} 31. a7 {[%emt 0:00:02]} Ke4 {[%emt 0:00:02]} 32. a8=Q 1-0

[Event "GER-chW Blitz 2019"]
[Site "Magdeburg"]
[Date "2019.05.25"]
[Round "1.6"]
[White "Rath, Alina"]
[Black "Kunze, Kerstin"]
[Result "1-0"]
[ECO "A25"]
[WhiteElo "2042"]
[BlackElo "2066"]
[Annotator "NA RC"]
[PlyCount "99"]
[EventDate "2019.05.25"]
[EventType "tourn"]
[EventCountry "GER"]
[SourceTitle "playchess.com"]
[Source "ChessBase"]
[SourceQuality "1"]
[TimeControl "180+2"]

1. c4 {[%emt 0:00:00]} e5 {[%emt 0:00:00]} 2. Nc3 {[%emt 0:00:00]} Nc6 {[%emt 0:00:01]} 3. g3 {[%emt 0:00:01]} Nf6 {[%emt 0:00:02]} 4. Bg2 {[%emt 0:00:02]} Be7 {[%emt 0:00:02]} 5. e4 {[%emt 0:00:01]} d6 {[%emt 0:00:01]} 6. Nge2 {[%emt 0:00:02]} Be6 {[%emt 0:00:06]} 7. d3 {[%emt 0:00:02]} O-O {[%emt 0:00:11]} 8. O-O {[%emt 0:00:02]} Qd7 {[%emt 0:00:16]} 9. f4 {[%emt 0:00:02]} Bh3 {[%emt 0:00:18]} 10. f5 {[%emt 0:00:02]} Bxg2 {[%emt 0:00:04]} 11. Kxg2 {[%emt 0:00:01]} Nd8 {[%emt 0:00:33]} 12. h3 {[%emt 0:00:02]} c6 {[%emt 0:00:01]} 13. g4 {[%emt 0:00:05]} h6 {[%emt 0:00:03]} 14. d4 {[%emt 0:00:14]} exd4 {[%emt 0:00:17]} 15. Qxd4 {[%emt 0:00:03]} Qc7 {[%emt 0:00:12]} 16. Bf4 {[%emt 0:00:13]} c5 {[%emt 0:00:06]} 17. Qd2 {[%emt 0:00:05]} Nc6 {[%emt 0:00:01]} 18. Rad1 {[%emt 0:00:06]} Ne5 {[%emt 0:00:01]} 19. b3 {[%emt 0:00:09]} Rfd8 {[%emt 0:00:10]} 20. Ng3 {[%emt 0:00:08]} a6 {[%emt 0:00:01]} 21. Rf2 {[%emt 0:00:28]} Qc6 {[%emt 0:00:01]} 22. Kh2 {[%emt 0:00:06]} b5 {[%emt 0:00:01]} 23. Nd5 {[%emt 0:00:06]} Nxd5 {[%emt 0:00:02]} 24. cxd5 {[%emt 0:00:06]} Qc7 {[%emt 0:00:13]} 25. Nh5 {[%emt 0:00:07]} f6 {[%emt 0:00:15]} 26. Bxh6 {[%emt 0:00:18]} Bf8 {[%emt 0:00:11]} 27. Bf4 {[%emt 0:00:05]} Nf7 {[%emt 0:00:01]} 28. g5 {[%emt 0:00:13]} fxg5 {[%emt 0:00:04]} 29. Bxg5 Re8 30. Re1 {[%emt 0:00:20]} Nxg5 {[%emt 0:00:07]} 31. Qxg5 {[%emt 0:00:02]} Qe7 {[%emt 0:00:00]} 32. Qg4 {[%emt 0:00:15]} Qe5+ {[%emt 0:00:01]} 33. Kg2 {[%emt 0:00:02]} Ra7 {[%emt 0:00:05]} 34. f6 {[%emt 0:00:02]} Rf7 {[%emt 0:00:06]} 35. Rf5 {[%emt 0:00:07]} Qb2+ {[%emt 0:00:01]} 36. Re2 {[%emt 0:00:01]} Qd4 {[%emt 0:00:03]} 37. fxg7 {[%emt 0:00:07]} Rxg7 {[%emt 0:00:01]} 38. Nxg7 {[%emt 0:00:01]} Bxg7 {[%emt 0:00:01]} 39. Rg5 {[%emt 0:00:06]} Qf6 {[%emt 0:00:11]} 40. Rg6 {[%emt 0:00:01]} Qe5 {[%emt 0:00:02]} 41. h4 {[%emt 0:00:02]} Rf8 {[%emt 0:00:00]} 42. Qe6+ {[%emt 0:00:05]} Qxe6 {[%emt 0:00:01]} 43. Rxe6 {[%emt 0:00:01]} Rd8 {[%emt 0:00:01]} 44. Rf2 {[%emt 0:00:01]} Be5 {[%emt 0:00:03]} 45. Rf5 {[%emt 0:00:01]} a5 {[%emt 0:00:02]} 46. Kh3 c4 47. bxc4 {[%emt 0:00:03]} bxc4 {[%emt 0:00:01]} 48. Rg6+ Kh7 {[%emt 0:00:04]} 49. Rg2 {[%emt 0:00:05]} c3 {[%emt 0:00:01]} 50. Rh5# 1-0

[Event "GER-chW Blitz 2019"]
[Site "Magdeburg"]
[Date "2019.05.25"]
[Round "1.7"]
[White "Silz, Elisa"]
[Black "Gheng, Simona"]
[Result "0-1"]
[ECO "D53"]
[WhiteElo "1977"]
[BlackElo "1991"]
[Annotator "NA RC"]
[PlyCount "108"]
[EventDate "2019.05.25"]
[EventType "tourn"]
[EventCountry "GER"]
[SourceTitle "playchess.com"]
[Source "ChessBase"]
[SourceQuality "1"]
[TimeControl "180+2"]

1. d4 {[%emt 0:00:00]} d5 {[%emt 0:00:00]} 2. c4 {[%emt 0:00:00]} e6 {[%emt 0:00:00]} 3. Nc3 {[%emt 0:00:00]} Nf6 {[%emt 0:00:01]} 4. Bg5 {[%emt 0:00:01]} Be7 {[%emt 0:00:00]} 5. e3 {[%emt 0:00:00]} h6 {[%emt 0:00:02]} 6. Bf4 {[%emt 0:00:01]} O-O {[%emt 0:00:11]} 7. Rc1 {[%emt 0:00:01]} Nbd7 {[%emt 0:00:01]} 8. Bd3 {[%emt 0:00:01]} dxc4 {[%emt 0:00:17]} 9. Bxc4 {[%emt 0:00:02]} Nb6 {[%emt 0:00:00]} 10. Bd3 {[%emt 0:00:01]} Bd6 {[%emt 0:00:02]} 11. Bxd6 {[%emt 0:00:06]} Qxd6 {[%emt 0:00:01]} 12. Nf3 {[%emt 0:00:03]} a6 {[%emt 0:00:02]} 13. O-O {[%emt 0:00:02]} Nbd5 {[%emt 0:00:02]} 14. Ne5 {[%emt 0:00:10]} b6 {[%emt 0:00:14]} 15. Nxd5 Nxd5 {[%emt 0:00:02]} 16. Be4 {[%emt 0:00:10]} Bb7 {[%emt 0:00:01]} 17. Bb1 {[%emt 0:00:12]} Rac8 {[%emt 0:00:08]} 18. Qd3 {[%emt 0:00:14]} Nf6 {[%emt 0:00:09]} 19. Ng4 {[%emt 0:00:10]} Ne4 {[%emt 0:00:32]} 20. f3 {[%emt 0:00:15]} f5 {[%emt 0:00:17]} 21. fxe4 {[%emt 0:00:06]} Bxe4 {[%emt 0:00:01]} 22. Nxh6+ {[%emt 0:00:18]} gxh6 {[%emt 0:00:01]} 23. Qe2 {[%emt 0:00:04]} Bxb1 {[%emt 0:00:01]} 24. Rxb1 {[%emt 0:00:01]} Kh7 {[%emt 0:00:06]} 25. Rbd1 {[%emt 0:00:11]} Rg8 {[%emt 0:00:09]} 26. e4 {[%emt 0:00:06]} Rg5 {[%emt 0:00:21]} 27. d5 {[%emt 0:00:15]} Rcg8 {[%emt 0:00:11]} 28. Rf2 {[%emt 0:00:11]} Qc5 {[%emt 0:00:14]} 29. Kh1 {[%emt 0:00:07]} exd5 {[%emt 0:00:26]} 30. exd5 {[%emt 0:00:12]} Qd6 {[%emt 0:00:04]} 31. Qe6 {[%emt 0:00:15]} R8g6 {[%emt 0:00:04]} 32. Qxd6 {[%emt 0:00:08]} Rxd6 {[%emt 0:00:01]} 33. Rfd2 {[%emt 0:00:09]} f4 {[%emt 0:00:01]} 34. Kg1 {[%emt 0:00:03]} Re5 {[%emt 0:00:01]} 35. Kf2 Kg6 36. h3 {[%emt 0:00:03]} Kf5 {[%emt 0:00:01]} 37. Rd4 {[%emt 0:00:03]} Re4 {[%emt 0:00:01]} 38. R4d3 {[%emt 0:00:05]} h5 {[%emt 0:00:02]} 39. Rc3 Re5 {[%emt 0:00:07]} 40. Rxc7 {[%emt 0:00:04]} Rexd5 {[%emt 0:00:00]} 41. Rxd5+ {[%emt 0:00:03]} Rxd5 {[%emt 0:00:00]} 42. Rc6 {[%emt 0:00:02]} Rd2+ {[%emt 0:00:01]} 43. Ke1 {[%emt 0:00:01]} Rxb2 {[%emt 0:00:01]} 44. a4 {[%emt 0:00:01]} Ke4 {[%emt 0:00:01]} 45. Rh6 {[%emt 0:00:04]} Ke3 {[%emt 0:00:01]} 46. Kd1 {[%emt 0:00:01]} Rxg2 {[%emt 0:00:02]} 47. Rxb6 {[%emt 0:00:02]} a5 {[%emt 0:00:01]} 48. Rb5 {[%emt 0:00:01]} f3 {[%emt 0:00:03]} 49. Rxh5 {[%emt 0:00:03]} Rd2+ {[%emt 0:00:03]} 50. Kc1 {[%emt 0:00:01]} Rd4 {[%emt 0:00:05]} 51. Rxa5 {[%emt 0:00:03]} f2 {[%emt 0:00:01]} 52. Re5+ {[%emt 0:00:04]} Re4 {[%emt 0:00:01]} 53. Rf5 {[%emt 0:00:01]} Rf4 {[%emt 0:00:00]} 54. Re5+ {[%emt 0:00:00]} Kd4 {[%emt 0:00:01]} 0-1

[Event "GER-chW Blitz 2019"]
[Site "Magdeburg"]
[Date "2019.05.25"]
[Round "1.8"]
[White "Kotyk, Valeriya"]
[Black "Kopylov, Luba"]
[Result "0-1"]
[ECO "A45"]
[WhiteElo "1739"]
[BlackElo "2078"]
[Annotator "NA RC"]
[PlyCount "82"]
[EventDate "2019.05.25"]
[EventType "tourn"]
[EventCountry "GER"]
[SourceTitle "playchess.com"]
[Source "ChessBase"]
[SourceQuality "1"]
[TimeControl "180+2"]

1. d4 {[%emt 0:00:00]} Nf6 {[%emt 0:00:00]} 2. Bg5 {[%emt 0:00:02]} Ne4 {[%emt 0:00:03]} 3. Bf4 {[%emt 0:00:02]} d5 {[%emt 0:00:02]} 4. f3 {[%emt 0:00:13]} Nf6 $11 {[%emt 0:00:01]} 5. Nd2 {[%emt 0:00:02]} c5 {[%emt 0:00:09]} 6. dxc5 {[%emt 0:00:23]} Qa5 {[%emt 0:00:01]} 7. c3 {[%emt 0:00:17]} Qxc5 {[%emt 0:00:05]} 8. Nb3 {[%emt 0:00:03]} Qb6 {[%emt 0:00:12]} 9. Qd4 {[%emt 0:00:01]} Nc6 {[%emt 0:00:05]} 10. Qxb6 {[%emt 0:00:02]} axb6 {[%emt 0:00:01]} 11. Nh3 {[%emt 0:00:33]} e5 {[%emt 0:00:02]} 12. Be3 {[%emt 0:00:10]} Be6 {[%emt 0:00:10]} 13. Bxb6 {[%emt 0:00:22]} Ra6 {[%emt 0:00:04]} 14. Bc5 {[%emt 0:00:08]} d4 {[%emt 0:00:14]} 15. Bxf8 {[%emt 0:00:03]} Rxf8 {[%emt 0:00:11]} 16. Nc5 {[%emt 0:00:02]} Rxa2 {[%emt 0:00:14]} 17. Rxa2 {[%emt 0:00:01]} Bxa2 {[%emt 0:00:02]} 18. Nxb7 {[%emt 0:00:02]} Ke7 {[%emt 0:00:10]} 19. e4 {[%emt 0:00:19]} Rb8 {[%emt 0:00:11]} 20. Nc5 {[%emt 0:00:01]} Rxb2 {[%emt 0:00:03]} 21. cxd4 {[%emt 0:00:03]} Nxd4 {[%emt 0:00:09]} 22. Nf2 {[%emt 0:00:09]} Rc2 {[%emt 0:00:34]} 23. Nfd3 {[%emt 0:00:07]} Bc4 {[%emt 0:00:08]} 24. Kd1 {[%emt 0:00:11]} Ra2 {[%emt 0:00:03]} 25. Nc1 {[%emt 0:00:07]} Rc2 {[%emt 0:00:29]} 26. Bxc4 {[%emt 0:00:05]} Rxc4 {[%emt 0:00:01]} 27. N5d3 {[%emt 0:00:01]} Nd7 {[%emt 0:00:04]} 28. h4 {[%emt 0:00:03]} Nb6 {[%emt 0:00:02]} 29. h5 {[%emt 0:00:03]} Na4 {[%emt 0:00:01]} 30. h6 {[%emt 0:00:03]} g6 {[%emt 0:00:01]} 31. Rf1 {[%emt 0:00:05]} Nc3+ {[%emt 0:00:00]} 32. Kd2 {[%emt 0:00:08]} Nb1+ {[%emt 0:00:00]} 33. Ke3 {[%emt 0:00:00]} Nc2+ {[%emt 0:00:00]} 34. Kf2 {[%emt 0:00:01]} Nd2 {[%emt 0:00:00]} 35. Rd1 {[%emt 0:00:02]} Nb1 {[%emt 0:00:00]} 36. Kg3 {[%emt 0:00:01]} Nd4 {[%emt 0:00:00]} 37. Na2 {[%emt 0:00:06]} Ne2+ {[%emt 0:00:00]} 38. Kh3 {[%emt 0:00:02]} Rd4 {[%emt 0:00:00]} 39. Nb2 {[%emt 0:00:05]} Nf4+ {[%emt 0:00:00]} 40. Kg3 {[%emt 0:00:01]} Rxd1 41. Nxd1 {[%emt 0:00:01]} Nd2 {[%emt 0:00:00]} 0-1

[Event "GER-chW Blitz 2019"]
[Site "Magdeburg"]
[Date "2019.05.25"]
[Round "1.9"]
[White "Fuchs, Judith"]
[Black "Zimmer, Elke"]
[Result "0-1"]
[ECO "D00"]
[WhiteElo "2218"]
[BlackElo "1926"]
[Annotator "RC"]
[PlyCount "130"]
[EventDate "2019.05.25"]
[EventType "tourn"]
[EventCountry "GER"]
[SourceTitle "playchess.com"]
[Source "ChessBase"]
[SourceQuality "1"]
[TimeControl "180+2"]

1. d4 {[%emt 0:00:00]} d5 {[%emt 0:00:00]} 2. Bf4 {[%emt 0:00:01]} Nf6 {[%emt 0:00:01]} 3. e3 {[%emt 0:00:01]} Bf5 {[%emt 0:00:02]} 4. Nf3 {[%emt 0:00:06]} e6 {[%emt 0:00:06]} 5. c4 {[%emt 0:00:09]} c6 {[%emt 0:00:01]} 6. Nc3 {[%emt 0:00:04]} Nbd7 {[%emt 0:00:20]} 7. Qb3 {[%emt 0:00:05]} Qb6 {[%emt 0:00:26]} 8. c5 {[%emt 0:00:02]} Qxb3 {[%emt 0:00:01]} 9. axb3 {[%emt 0:00:01]} Nh5 {[%emt 0:00:09]} 10. Bg5 {[%emt 0:00:45]} h6 {[%emt 0:00:09]} 11. Bh4 {[%emt 0:00:01]} g5 {[%emt 0:00:01]} 12. Bg3 {[%emt 0:00:01]} Nxg3 {[%emt 0:00:01]} 13. hxg3 {[%emt 0:00:01]} Bg7 {[%emt 0:00:05]} 14. b4 {[%emt 0:00:04]} a6 {[%emt 0:00:14]} 15. Nd2 {[%emt 0:00:05]} O-O {[%emt 0:00:22]} 16. Nb3 {[%emt 0:00:07]} Rab8 {[%emt 0:00:07]} 17. Kd2 {[%emt 0:00:16]} e5 {[%emt 0:00:03]} 18. Na4 {[%emt 0:00:08]} Rfe8 {[%emt 0:00:09]} 19. Be2 {[%emt 0:00:16]} Bg6 {[%emt 0:00:13]} 20. Bg4 {[%emt 0:00:19]} f5 {[%emt 0:00:01]} 21. Bh5 {[%emt 0:00:01]} Bxh5 {[%emt 0:00:02]} 22. Rxh5 {[%emt 0:00:01]} Nf6 {[%emt 0:00:12]} 23. Rhh1 {[%emt 0:00:06]} Ne4+ {[%emt 0:00:01]} 24. Ke2 {[%emt 0:00:14]} exd4 {[%emt 0:00:01]} 25. Rhe1 {[%emt 0:00:34]} dxe3 {[%emt 0:00:04]} 26. fxe3 {[%emt 0:00:03]} Nxg3+ {[%emt 0:00:01]} 27. Kf3 {[%emt 0:00:01]} Ne4 {[%emt 0:00:03]} 28. Nd4 {[%emt 0:00:02]} Bxd4 {[%emt 0:00:02]} 29. exd4 {[%emt 0:00:01]} Nd2+ {[%emt 0:00:01]} 30. Kf2 {[%emt 0:00:01]} Nc4 {[%emt 0:00:06]} 31. b3 {[%emt 0:00:03]} Nd2 {[%emt 0:00:08]} 32. Ra3 {[%emt 0:00:05]} Ne4+ {[%emt 0:00:02]} 33. Kg1 {[%emt 0:00:01]} Ng3 {[%emt 0:00:06]} 34. Rd1 {[%emt 0:00:04]} Re3 {[%emt 0:00:03]} 35. Kf2 {[%emt 0:00:02]} Rbe8 {[%emt 0:00:02]} 36. Ra2 {[%emt 0:00:02]} f4 {[%emt 0:00:02]} 37. Nb6 {[%emt 0:00:01]} Ne4+ {[%emt 0:00:05]} 38. Kf1 {[%emt 0:00:00]} Nc3 {[%emt 0:00:01]} 39. Rad2 {[%emt 0:00:02]} Nxd1 {[%emt 0:00:01]} 40. Rxd1 {[%emt 0:00:01]} Rxb3 {[%emt 0:00:02]} 41. Nd7 {[%emt 0:00:00]} Kg7 {[%emt 0:00:07]} 42. Ne5 {[%emt 0:00:04]} Rxb4 {[%emt 0:00:04]} 43. Nf3 {[%emt 0:00:00]} Re3 {[%emt 0:00:03]} 44. Kf2 {[%emt 0:00:02]} Rb2+ {[%emt 0:00:00]} 45. Kf1 {[%emt 0:00:04]} Ree2 {[%emt 0:00:01]} 46. Ne1 {[%emt 0:00:01]} g4 {[%emt 0:00:05]} 47. Nd3 {[%emt 0:00:00]} Rbd2 {[%emt 0:00:04]} 48. Nxf4 {[%emt 0:00:02]} Rxd1+ {[%emt 0:00:07]} 49. Kxe2 {[%emt 0:00:01]} Ra1 {[%emt 0:00:02]} 50. Ne6+ {[%emt 0:00:03]} Kf6 {[%emt 0:00:02]} 51. Nf4 {[%emt 0:00:01]} Ra3 {[%emt 0:00:04]} 52. Nh5+ {[%emt 0:00:03]} Kg5 {[%emt 0:00:02]} 53. Ng7 {[%emt 0:00:01]} Ra2+ {[%emt 0:00:03]} 54. Kf1 {[%emt 0:00:01]} Kf4 {[%emt 0:00:02]} 55. Nh5+ {[%emt 0:00:03]} Ke3 {[%emt 0:00:05]} 56. Nf6 {[%emt 0:00:01]} g3 {[%emt 0:00:04]} 57. Ng4+ {[%emt 0:00:01]} Kxd4 {[%emt 0:00:01]} 58. Ke1 {[%emt 0:00:02]} Rxg2 {[%emt 0:00:07]} 59. Kf1 {[%emt 0:00:00]} Ra2 {[%emt 0:00:01]} 60. Nxh6 {[%emt 0:00:02]} Ke3 {[%emt 0:00:03]} 61. Nf5+ {[%emt 0:00:02]} Kf3 {[%emt 0:00:01]} 62. Nd4+ {[%emt 0:00:01]} Ke4 {[%emt 0:00:04]} 63. Ne6 {[%emt 0:00:02]} Ke3 {[%emt 0:00:03]} 64. Ng7 {[%emt 0:00:05]} Kf3 {[%emt 0:00:02]} 65. Ke1 {[%emt 0:00:05]} g2 {[%emt 0:00:04]} 0-1